Cogmind - Beta 14 @@@ ROGUE MODE // 2025.01.18 @ 21:02:41 Player: xack Result: Destroyed by Striker with Plasma Lance Performance ------------- Evolutions (5) 2500 Regions Visited (18) 3600 Robots Destroyed (240) 1200 Value Destroyed (13230) 13230 Prototype IDs (34) 680 Alien Tech Used (0) 0 Bonus (9914) 9914 TOTAL SCORE: 31124 Bonus ------- High Alert Combat Kills 2840 Follower Combat Kills 2504 Entered Garrisons 1400 Used RIF Installer 4000 Aligned with FarCom 300 Friendly Fire -1130 Cogmind --------- Core Integrity 0/1000 Matter 300/300 Energy 100/100 System Corruption 4% Temperature Cool (0) Movement Treading (160) Location -5/Garrison Parts ------- > --- POWER (2) -------- (None) > --- PROPULSION (6) --- Improved Treads Improved Treads Improved Treads Improved Treads > --- UTILITY (6) ------ Advanced Heat Sink Huge Storage Unit Relay Coupler [Duelist] (32) Relay Coupler [Proto] (15) > --- WEAPON (3) ------- (None) > --- INVENTORY (25) --- Improved Deuterium Engine Improved Treads Improved Treads Improved Treads Matter Compressor (250) Advanced Terrain Scanner Improved Kinecellerator Improved Reaction Control System Improved Medium Armor Plating Improved Medium Armor Plating Graphene Brace Improved Hacking Suite Relay Coupler [NC] (31) Relay Coupler [Swarmer] (39) Relay Coupler [Specialist] (19) Long-range Tractor Beam KE Penetrator KE Penetrator AWS/Gauss Linear Accelerator Linear Accelerator Improved Concussive RPG (1) Plasma Cutter Chainsword Peak State ------------ > --- POWER ------------ Neutrino Core Light Antimatter Reactor > --- PROPULSION ------- Flexi-carbon Leg Flexi-carbon Leg Flexi-carbon Leg Flexi-carbon Leg Advanced VSS Leg Advanced VSS Leg > --- UTILITY ---------- Advanced Cooling System Huge Storage Unit Improved Kinecellerator Advanced Hacking Suite Relay Coupler [Brawler] Relay Coupler [Proto] > --- WEAPON ----------- Wave Gun Advanced Plasma Cannon KE Penetrator > --- INVENTORY -------- Hybrid Fission Core Improved Treads Improved Treads Carbon-fiber Leg Carbon-fiber Leg Carbon-fiber Leg Flexi-carbon Leg Matter Compressor Advanced Terrain Scanner Improved Reaction Control System Improved Reaction Control System Hardened Heavy Armor Plating Improved Medium Armor Plating Improved Medium Armor Plating Improved Medium Armor Plating Graphene Brace Improved Hacking Suite Relay Coupler [NC] Long-range Tractor Beam AWS/Gauss Improved Remote Datajack Plasma Cutter Chainsword [Rating: 107] Favorites ----------- Power Improved Deuterium Engine Engine Improved Deuterium Engine Power Core Fission Core Reactor Light Antimatter Reactor Propulsion Light Treads Treads Light Treads Leg Carbon-fiber Leg Wheel Compact Wheel Utility Huge Storage Unit Device Advanced Cooling System Storage Huge Storage Unit Processor Improved Melee Analysis Suite Hackware Relay Coupler [Grunt] Protection Medium Armor Plating Weapon Autogun Energy Gun Wave Gun Energy Cannon Advanced Plasma Cannon Ballistic Gun Autogun Ballistic Cannon Heavy Mass Driver Launcher Missile Launcher Special Weapon Remote Datajack Impact Weapon Heavy Mace Slashing Weapon Chainsword Special Melee Weapon Datajack Build | -11 -10 -10 -10 -9 -8 -8 -8 -8 -7 -7 -6 -6 -6 -6 -5 -5 -5 -5 ------- Run | Yrd Mat Min Exi Min Mat Gar Mat Gar Fac Gar Fac Gar Fac Gar Fac Gar Fac Gar Slots Evolved 10 | . . . . . 4 . . . 2 . 2 . . . 2 . . . Power 1 | . . . . . . . . . . . . . . . 1 . . . Propulsion 4 | . . . . . 2 . . . . . 2 . . . . . . . Utility 4 | . . . . . 1 . . . 2 . . . . . 1 . . . Weapon 1 | . . . . . 1 . . . . . . . . . . . . . Parts Attached 367 | 7 10 5 1 1 36 31 18 11 14 28 11 17 23 24 29 23 3 75 Power 25 | 1 1 . . . 3 1 1 2 . 2 . 1 1 1 1 1 . 9 Engine 8 | 1 1 . . . 1 . 1 . . 1 . 1 1 . . . . 1 Core 16 | . . . . . 2 1 . 2 . 1 . . . 1 1 1 . 7 Reactor 1 | . . . . . . . . . . . . . . . . . . 1 Propulsion 100 | 2 . . . . 5 8 5 7 1 6 3 5 9 7 8 4 . 30 Treads 54 | 2 . . . . 4 8 5 7 1 6 1 2 5 . . . . 13 Leg 42 | . . . . . . . . . . . 1 3 4 6 7 4 . 17 Wheel 4 | . . . . . 1 . . . . . 1 . . 1 1 . . . Hover . | . . . . . . . . . . . . . . . . . . . Flight . | . . . . . . . . . . . . . . . . . . . Utility 114 | 2 2 3 1 . 10 7 8 1 8 9 8 5 2 5 13 9 . 21 Device 60 | 1 . 3 . . 4 6 3 1 5 5 4 2 . . 9 5 . 12 Storage 7 | 1 1 . 1 . 2 . . . . 1 1 . . . . . . . Processor 1 | . . . . . . . . . . . . . . . . . . 1 Hackware 25 | . . . . . 1 . 2 . 2 1 1 3 2 2 2 3 . 6 Protection 21 | . 1 . . . 3 1 3 . 1 2 2 . . 3 2 1 . 2 Artifact . | . . . . . . . . . . . . . . . . . . . Weapon 128 | 2 7 2 . 1 18 15 4 1 5 11 . 6 11 11 7 9 3 15 Energy Gun 18 | 1 . . . . 5 1 . . 1 . . . . 1 4 1 1 3 Energy Cannon 16 | . . . . . . . . 1 . 3 . 2 5 2 1 1 . 1 Ballistic Gun 30 | 1 4 2 . 1 6 5 1 . 1 . . . 1 2 . 2 . 4 Ballistic Cannon 13 | . . . . . . 3 1 . 2 4 . 1 1 . . 1 . . Launcher 18 | . . . . . 4 2 1 . . 1 . 1 1 3 . 2 1 2 Special Weapon 26 | . 3 . . . 3 . . . 1 3 . 2 3 3 2 2 1 3 Impact Weapon 2 | . . . . . . 2 . . . . . . . . . . . . Slashing Weapon 2 | . . . . . . . . . . . . . . . . . . 2 Piercing Weapon . | . . . . . . . . . . . . . . . . . . . Special Melee Weapon 3 | . . . . . . 2 1 . . . . . . . . . . . Unidentified Prototypes 8 | . . . . . 4 . . . 1 . 1 . 1 . 1 . . . Parts Lost 73 | . . 1 . . 1 7 4 3 . 4 . 5 3 9 1 7 . 28 Power 12 | . . . . . . 1 1 1 . . . 1 1 1 . 1 . 5 Propulsion 33 | . . . . . 1 2 1 1 . 2 . 3 2 5 1 4 . 11 Utility 13 | . . . . . . 2 1 . . 1 . . . 2 . 2 . 5 Weapon 15 | . . 1 . . . 2 1 1 . 1 . 1 . 1 . . . 7 Highest Loss Streak 10 | . . 1 . . 1 4 3 1 . 2 . 3 2 3 1 3 . 10 To Critical Strikes 2 | . . . . . . . . 1 . . . . . . . . . 1 Average Slot Usage (%) 92 | . 100 100 71 85 97 98 99 98 99 95 91 91 91 78 94 96 88 81 Engine 4 | . 14 14 14 14 3 . 7 3 . 4 6 5 5 5 . . . . Core 4 | . . . . . 5 8 1 5 7 2 . . . . 6 10 11 8 Treads 22 | . 28 28 28 28 33 36 36 34 29 29 33 28 28 4 . . . 4 Leg 10 | . . . . . . . . . . . 4 9 9 18 32 33 29 26 Device 6 | . 7 14 14 14 3 8 1 2 8 12 6 5 1 . 6 10 5 3 Storage 7 | . 14 14 14 14 9 9 9 9 7 7 6 6 6 6 5 5 5 5 Hackware 10 | . . . . . 1 . 7 9 19 10 12 19 24 20 18 13 17 14 Protection 4 | . 6 . . . 13 8 9 6 1 6 6 . . 6 1 3 5 3 Energy Gun 1 | . . . . . 2 4 . . . . . . . 1 3 4 1 2 Energy Cannon 2 | . . . . . . . . 2 7 6 . 3 4 3 5 3 . 1 Ballistic Gun 7 | . 23 28 . 14 21 11 2 9 6 . . . . . 5 3 . 2 Ballistic Cannon 4 | . . . . . . 7 18 15 1 8 6 5 6 3 . 1 5 . Special Weapon 1 | . 3 . . . 1 . . . 5 1 6 2 1 4 1 . 3 . Peak Build Rating 107 | 7 11 12 12 25 32 40 37 35 45 59 68 69 70 64 87 94 87 107 Average Rating 48 | 5 10 11 10 25 25 32 31 33 39 50 64 61 58 56 76 87 85 80 On Entrance 42 | . 7 11 12 11 25 28 37 33 35 40 58 66 63 57 64 87 86 87 Naked Turns . | . . . . . . . . . . . . . . . . . . . Heaviest Build 139 | 13 38 32 46 56 108 77 75 75 79 134 127 125 125 126 121 136 131 139 Greatest Support 138 | 40 40 40 40 40 80 80 80 80 80 90 110 130 100 90 105 105 80 138 Greatest Overweight (x) 38 | . . . 1 1 4 . . 1 1 1 1 2 5 38 2 1 1 31 Average Overweight (x) . | . . . . 1 . . . . . . 1 . 1 2 1 1 1 1 Largest Inventory Capacity 25 | 8 15 15 20 20 25 20 20 20 20 25 25 25 25 25 25 25 25 25 Average Capacity 21 | 7 13 15 19 20 20 20 20 20 20 22 25 25 25 25 25 25 25 25 Most Carried 25 | 7 13 15 20 18 23 20 20 20 20 25 25 25 25 25 25 25 25 25 Average Carried 21 | 4 10 14 19 18 19 19 19 19 19 21 24 24 24 24 24 24 24 23 Final Capacity 25 | 8 15 15 20 20 20 20 20 20 20 25 25 25 25 25 25 25 25 25 Final Carried 25 | 6 13 15 20 18 20 20 20 20 19 25 25 25 25 24 25 24 25 25 Class Distribution -------------------- 29% | Botlord-Skirmisher 18% | Mutant 15% | Bothacker-Skirmisher 8% | Scavenger-Skirmisher 6% | Skirmisher 5% | Botlord-Tank 5% | Scavenger-Mutant 4% | Tank 3% | Bothacker-Mutant Dominant Class ---------------- Mutant | -10/Materials Mutant | -10/Mines Mutant | -10/Exiles Mutant | -9/Mines Skirmisher | -8/Materials Scavenger-Skirmisher | -8/Garrison Bothacker-Mutant | -8/Materials Scavenger-Skirmisher | -8/Garrison Bothacker-Skirmisher | -7/Factory Bothacker-Skirmisher | -7/Garrison Bothacker-Skirmisher | -6/Factory Botlord-Skirmisher | -6/Garrison Botlord-Skirmisher | -6/Factory Botlord-Skirmisher | -6/Garrison Botlord-Skirmisher | -5/Factory Botlord-Tank | -5/Garrison Botlord-Skirmisher | -5/Factory Scavenger-Mutant | -5/Garrison Resources | -11 -10 -10 -10 -9 -8 -8 -8 -8 -7 -7 -6 -6 -6 -6 -5 -5 -5 -5 ----------- Run | Yrd Mat Min Exi Min Mat Gar Mat Gar Fac Gar Fac Gar Fac Gar Fac Gar Fac Gar Matter Collected 10520 | 276 501 336 . 36 806 830 766 658 539 716 373 620 922 614 397 620 47 1463 Remotely 789 | . . . . . 82 129 123 . . . 99 98 . . 96 71 . 91 Salvage Created 8583 | 98 439 140 . 59 988 1127 683 680 215 717 21 368 501 406 332 888 57 864 Parts 428 | 5 21 6 . 2 54 57 43 42 13 38 3 23 14 14 12 47 6 28 Haulers Intercepted 9 | . 1 . . . 5 . 3 . . . . . . . . . . . Recyclers Shooed 2 | . 1 . . . . . . . . . . . . . 1 . . . Parts Field Recycled . | . . . . . . . . . . . . . . . . . . . Retrieved Matter . | . . . . . . . . . . . . . . . . . . . Parts Self-Destructed . | . . . . . . . . . . . . . . . . . . . Prevented . | . . . . . . . . . . . . . . . . . . . Kills | -11 -10 -10 -10 -9 -8 -8 -8 -8 -7 -7 -6 -6 -6 -6 -5 -5 -5 -5 ------- Run | Yrd Mat Min Exi Min Mat Gar Mat Gar Fac Gar Fac Gar Fac Gar Fac Gar Fac Gar Combat Hostiles Destroyed 204 | . 5 5 . 2 21 32 17 19 4 20 2 13 9 10 3 23 2 17 Melee 2 | . . . . . . . . 1 . . . . . . . . . 1 Guns 61 | . 5 5 . 2 11 16 2 1 1 . . . . . 2 7 . 9 Cannons 90 | . . . . . . 9 8 17 3 16 2 10 7 3 1 10 1 3 AOE 49 | . . . . . 10 7 7 . . 4 . 3 2 7 . 6 1 2 Classes Destroyed 18 | 2 3 1 . 1 5 1 3 . . 1 . 1 . . . . . . Worker 2 | . . . . . 2 . . . . . . . . . . . . . Builder 5 | . . . . . 2 . 1 . . . . . 1 . 1 . . . Tunneler 3 | 1 . . . . 1 . 1 . . . . . . . . . . . Hauler 9 | . 1 . . . 5 . 3 . . . . . . . . . . . Recycler 7 | 1 1 . . . 2 . 1 . 1 . . . . . 1 . . . Operator 1 | . . . . . . . 1 . . . . . . . . . . . Watcher 6 | . 3 . . . 1 . 2 . . . . . . . . . . . Swarmer 51 | . . 3 . . 11 6 1 3 1 7 2 3 . 4 . 7 1 2 Cutter 5 | . . . . . . . . . . . . 2 . . . 2 . 1 Grunt 79 | . 5 2 . 1 7 15 10 4 2 7 . 5 4 5 . 7 . 5 Brawler 3 | . . . . . . . 1 . . . . . . . . . . 2 Duelist 5 | . . . . . 2 . . 1 . . . . . . . 1 . 1 Protector 1 | . . . . . . . 1 . . . . . . . . . . . Sentry 29 | . . . . . 1 7 3 5 . 5 . . . 1 . 3 . 4 Hunter 11 | . . . . . 1 2 1 . . . . . 2 1 . 1 1 2 Programmer 21 | . . . . . . 2 . 6 1 . . 3 3 1 3 2 . . Behemoth 2 | . . . . . . . . . . 1 . . . . . . . 1 Assembled 1 | . . . . 1 . . . . . . . . . . . . . . Best Kill Streak 8 | 2 2 3 . 2 5 8 7 3 2 4 2 4 3 4 2 7 1 4 Combat Bots Only 8 | . 2 3 . 2 4 8 7 3 1 4 2 4 3 4 1 7 1 4 Max Kills in Single Turn 4 | 1 1 2 . 1 4 3 4 1 1 2 1 2 2 2 1 2 1 2 Gunslinging 1 | . . 1 . . . . . . . . . . . . . . . . Exploded 4 | . . . . . 3 3 4 . . 2 . 2 2 2 . 2 1 2 Melee 1 | . . . . . . . . 1 . . . . . . . . . 1 Uniques/NPCs Destroyed . | . . . . . . . . . . . . . . . . . . . Combat | -11 -10 -10 -10 -9 -8 -8 -8 -8 -7 -7 -6 -6 -6 -6 -5 -5 -5 -5 -------- Run | Yrd Mat Min Exi Min Mat Gar Mat Gar Fac Gar Fac Gar Fac Gar Fac Gar Fac Gar Hostile Shots Fired 1280 | . 30 14 . 5 52 134 78 74 7 136 11 124 50 106 28 141 2 288 Missed 319 | . 6 5 . 1 14 24 17 14 4 35 8 37 15 38 9 27 2 63 Damage Taken 15519 | . 322 105 . 65 477 1467 1078 592 169 1425 27 1347 896 885 304 1378 . 4982 Core 1562 | . 57 8 . . . 94 67 50 28 61 . 110 41 16 14 123 . 893 Absorbed by Shields 1541 | . . . . . . . . 289 . 135 . 55 . 17 86 754 . 205 Ignored by Resistances 170 | . . . . . . . 11 29 . 130 . . . . . . . . Core Remaining (%) 80 | 100 . . . 74 . . . 61 . 87 . . . 80 . . . . Volleys Fired 700 | 2 46 11 . . 52 68 56 47 24 53 4 43 51 36 32 78 3 94 Largest 3 | 2 2 2 . . 3 3 3 3 3 3 1 2 2 2 3 3 2 3 Hottest 240 | 60 123 46 . . 131 129 129 137 137 240 75 173 173 173 207 207 156 212 Shots Fired 1317 | 4 87 22 . 10 120 155 118 113 34 108 4 55 60 47 61 153 4 162 Gun 625 | 4 80 22 . 10 105 112 17 45 8 2 . . . 4 33 85 1 97 Cannon 560 | . . . . . . 39 97 68 16 92 3 45 49 28 26 56 1 40 Launcher 46 | . . . . . 6 4 4 . . 5 . 2 2 7 . 8 2 6 Special 86 | . 7 . . . 9 . . . 10 9 1 8 9 8 2 4 . 19 Kinetic 823 | 2 80 22 . 10 92 111 114 103 10 47 3 33 41 12 18 52 1 72 Thermal 373 | . 7 . . . 21 40 . 10 14 45 . 12 8 20 41 89 1 65 Explosive 46 | . . . . . 6 4 4 . . 5 . 2 2 7 . 8 2 6 Electromagnetic 5 | 2 . . . . 1 . . . . 2 . . . . . . . . Robot Hit Streak 19 | 2 12 11 . 11 11 16 8 13 8 13 3 8 9 4 5 10 1 19 Robot Miss Streak 6 | . 3 3 . 1 5 6 4 2 3 6 1 3 3 2 3 5 2 3 Penetration Max 1 | . . . . . . . 1 1 . . . . . . 1 1 . . Secondary Targets 2 | . . 1 . . . 1 . . . . . . . . . . . . Max Gunslinging Chain 1 | . . 1 . . . 1 . . . . . . . . . . . . Autonomous 38 | . . . . 10 4 12 . . . . . . . . . . . 12 Shots Hit Robots 777 | 2 52 15 . 8 67 101 66 66 16 64 3 31 38 20 30 85 1 112 Core Hits 397 | 2 17 10 . 2 58 58 45 24 6 33 2 15 15 19 12 37 2 40 Critical Kills 3 | . . . . . . . 1 . . . . . . . 1 1 . . Critical Parts Destroyed 6 | . . . . . 1 1 1 1 . . . . . . . . . 2 Critical Strikes 32 | . . . . . 1 5 4 1 . 2 . 3 5 1 1 3 . 6 Burn 2 | . . . . . . 1 . . . . . . . . . 1 . . Destroy 9 | . . . . . 1 1 2 1 . . . . . . 1 1 . 2 Blast 20 | . . . . . . 3 2 . . 2 . 3 5 1 . 1 . 3 Sever 1 | . . . . . . . . . . . . . . . . . . 1 Melee Attacks 25 | . . . . . . 13 7 . . . . . . . . . . 5 Impact 6 | . . . . . . 6 . . . . . . . . . . . . Slashing 5 | . . . . . . . . . . . . . . . . . . 5 Piercing . | . . . . . . . . . . . . . . . . . . . Sneak Attacks 7 | . . . . . . 7 . . . . . . . . . . . . Combat Hostiles . | . . . . . . . . . . . . . . . . . . . Follow-up Attacks . | . . . . . . . . . . . . . . . . . . . Damage Inflicted 28218 | 30 799 225 . 235 2408 2822 2906 1766 187 2626 125 1990 2391 1578 832 3397 200 3701 Guns 7880 | 30 773 224 . 235 1166 1394 226 596 45 44 . . . . 430 1033 25 1659 Cannons 13557 | . . . . . . 786 1623 1161 142 1937 125 1752 2018 623 402 1636 50 1302 Explosions 6572 | . . . . . 1242 642 1057 . . 645 . 238 349 955 . 728 125 591 Melee 108 | . . . . . . . . . . . . . . . . . . 108 Ramming 77 | . 2 1 . . . . . 9 . . . . 24 . . . . 41 Kinetic 15789 | . 773 224 . 235 1036 1848 1849 1596 73 1041 125 1472 1822 454 271 1143 50 1777 Thermal 5583 | . 24 . . . 115 332 . 161 114 896 . 280 196 169 561 1526 25 1184 Explosive 6531 | . . . . . 1242 642 1057 . . 645 . 238 308 955 . 728 125 591 Electromagnetic 130 | 30 . . . . 15 . . . . 44 . . 41 . . . . . Impact . | . . . . . . . . . . . . . . . . . . . Slashing 108 | . . . . . . . . . . . . . . . . . . 108 Piercing . | . . . . . . . . . . . . . . . . . . . Highest Corruption 12 | . 1 1 1 1 . 2 7 12 2 . . 4 5 5 1 3 3 4 Average Corruption 3 | . 1 1 1 1 . 2 2 7 1 . . 3 4 5 1 1 3 3 Corruption Purged 2 | . . . . . . . . . 2 . . . . . . . . . Corruption Blocked . | . . . . . . . . . . . . . . . . . . . Effects 256 | . 8 10 5 . . 10 21 37 8 . . 20 34 40 8 12 1 42 Message Errors 59 | . 1 3 1 . . 1 8 9 2 . . 5 8 7 4 2 . 8 Matter Fused 57 | . 2 3 3 . . 5 2 5 1 . . 4 8 12 1 2 . 9 Heat Flow Errors 32 | . . 1 . . . 1 4 4 1 . . 2 4 7 . 1 . 7 Energy Discharges 36 | . 1 1 1 . . 1 3 5 2 . . 1 4 6 . 2 . 9 Parts Rejected 4 | . . . . . . . 1 . 1 . . . 2 . . . . . Parts Fused 2 | . . . . . . . . 1 . . . . . 1 . . . . Data Loss (minor) 27 | . 3 . . . . 1 2 6 . . . 4 4 1 1 2 1 2 Data Loss (major) 16 | . . 1 . . . . . 4 1 . . 1 1 2 1 . . 5 Misfires 8 | . . 1 . . . . . . . . . 1 1 3 . 1 . 1 Alerts 6 | . . . . . . . . 1 . . . 2 2 . . . . 1 Weapon Failures 9 | . 1 . . . . 1 1 2 . . . . . 1 1 2 . . Overload Shots . | . . . . . . . . . . . . . . . . . . . Overflow Damage 821 | . . . . . 53 50 100 2 . 6 . 148 272 9 32 95 . 54 Projectiles 623 | . . . . . . 49 69 2 . 6 . 114 272 . 32 53 . 26 Explosions 198 | . . . . . 53 1 31 . . . . 34 . 9 . 42 . 28 Melee . | . . . . . . . . . . . . . . . . . . . Knockbacks 41 | . . . . . . 3 7 11 . 4 . 4 7 3 . 1 . 1 Impact 1 | . . . . . . . . . . . . . 1 . . . . . Kinetic 39 | . . . . . . 3 7 10 . 4 . 4 6 3 . 1 . 1 Secondary 1 | . . . . . . . . 1 . . . . . . . . . . Self-Inflicted Damage 252 | . . . . . 43 47 47 . . . . 18 . 20 . 42 . 35 Shots 11 | . . . . . 1 2 3 . . . . 1 . 1 . 2 . 1 Rammed 16 | . 1 1 . . . . . . . . . . 8 . . . . 6 Targets Rammed 17 | . 1 1 . . . . . 1 . . . . 8 . . . . 6 Kicked . | . . . . . . . . . . . . . . . . . . . Crushed 1 | . . . . . . . . 1 . . . . . . . . . . Highest Temperature 499 | . 134 123 . . 225 340 337 400 224 406 . 277 181 250 390 383 . 499 Average Temperature 98 | . 31 21 . . 42 109 86 143 36 67 . 101 42 78 113 108 . 159 Received Heat Transfer 2887 | . 198 39 . 18 45 585 495 201 21 315 . 152 66 180 12 178 . 382 Effects 36 | . . . . . . 3 3 4 . 3 . 4 . . . 1 . 18 Shutdowns 8 | . . . . . . . . . . 1 . . . . . 1 . 6 Energy Bleed 3 | . . . . . . . . 1 . 1 . 1 . . . . . . Interference 17 | . . . . . . 3 3 3 . . . 3 . . . . . 5 Matter Decay 4 | . . . . . . . . . . 1 . . . . . . . 3 Short Circuit 1 | . . . . . . . . . . . . . . . . . . 1 Damage (major) 3 | . . . . . . . . . . . . . . . . . . 3 Siege Activations . | . . . . . . . . . . . . . . . . . . . Robots Corrupted . | . . . . . . . . . . . . . . . . . . . Combat Hostiles . | . . . . . . . . . . . . . . . . . . . Parts Fried . | . . . . . . . . . . . . . . . . . . . Impact Corruptions . | . . . . . . . . . . . . . . . . . . . Robots Melted 2 | . . . . . . . . . . . . . . . . . . 2 Combat Hostiles 2 | . . . . . . . . . . . . . . . . . . 2 Parts Melted 20 | . . 1 . . . 1 . . . 2 . . . . 1 8 . 7 Heat Transferred 8619 | . 50 . . . 259 814 . 185 148 1335 . 400 300 250 809 2257 37 1775 Parts Sabotaged . | . . . . . . . . . . . . . . . . . . . Parts Stolen . | . . . . . . . . . . . . . . . . . . . Parts Stripped . | . . . . . . . . . . . . . . . . . . . Power Chain Reactions . | . . . . . . . . . . . . . . . . . . . Alert | -11 -10 -10 -10 -9 -8 -8 -8 -8 -7 -7 -6 -6 -6 -6 -5 -5 -5 -5 ------- Run | Yrd Mat Min Exi Min Mat Gar Mat Gar Fac Gar Fac Gar Fac Gar Fac Gar Fac Gar Peak Influence 1825 | 10 125 80 . 30 311 1408 943 1136 635 1690 957 1253 796 780 401 984 687 1825 Initial 876 | . 6 . . . 11 107 686 526 596 310 876 669 657 153 399 88 516 480 Average 596 | 3 36 12 . 24 125 704 785 781 569 1104 939 996 450 358 310 524 552 1096 Maximum Alert Level 5 | . . . . . 1 4 3 4 2 5 3 4 3 3 2 3 2 5 Low Security (%) 21 | 100 100 100 . 100 78 7 . . . . . . 1 7 9 11 . . Level 1 18 | . . . . . 21 20 . . . 3 . . 49 59 66 25 . . Level 2 18 | . . . . . . 24 12 42 100 8 . 7 30 25 23 28 100 3 Level 3 27 | . . . . . . 25 87 46 . 37 100 71 17 6 . 34 . 50 Level 4 11 | . . . . . . 22 . 11 . 38 . 20 . . . . . 34 Level 5 2 | . . . . . . . . . . 11 . . . . . . . 10 High Security . | . . . . . . . . . . . . . . . . . . . Max Security . | . . . . . . . . . . . . . . . . . . . Squads Dispatched 17 | . . 1 . . 1 . 2 . 3 . . . 4 . 5 . 1 . Investigation 2 | . . 1 . . . . . . 1 . . . . . . . . . Extermination 5 | . . . . . . . . . 1 . . . 3 . 1 . . . Reinforcement 7 | . . . . . 1 . . . 1 . . . 1 . 3 . 1 . Assault 2 | . . . . . . . 2 . . . . . . . . . . . Garrison 1 | . . . . . . . . . . . . . . . 1 . . . Intercept . | . . . . . . . . . . . . . . . . . . . Searches Triggered . | . . . . . . . . . . . . . . . . . . . Construction Impeded 1 | . . . . . . . . . . . . . . . 1 . . . Haulers Reinforced . | . . . . . . . . . . . . . . . . . . . Active Scanning Responses . | . . . . . . . . . . . . . . . . . . . Cargo Convoy Interrupts 1 | . . . . . . . . . . . . . . . 1 . . . Stealth | -11 -10 -10 -10 -9 -8 -8 -8 -8 -7 -7 -6 -6 -6 -6 -5 -5 -5 -5 --------- Run | Yrd Mat Min Exi Min Mat Gar Mat Gar Fac Gar Fac Gar Fac Gar Fac Gar Fac Gar Distress Signals 7 | . . . . . 1 . 3 . . . . . 1 . 2 . . . Communications Jammed . | . . . . . . . . . . . . . . . . . . . Distress Signals . | . . . . . . . . . . . . . . . . . . . Times Spotted 354 | . 12 7 . 3 27 35 38 19 13 37 5 28 20 22 13 30 6 39 Peak Tracking Total 10 | . 2 3 . 2 5 5 10 3 3 9 3 7 5 4 3 5 3 6 Tactical Retreats 8 | . . . . . . . 2 . . 3 . . . . 1 . . 2 Traps | -11 -10 -10 -10 -9 -8 -8 -8 -8 -7 -7 -6 -6 -6 -6 -5 -5 -5 -5 ------- Run | Yrd Mat Min Exi Min Mat Gar Mat Gar Fac Gar Fac Gar Fac Gar Fac Gar Fac Gar Traps Triggered 48 | . 1 . . . . . . . 1 9 . 4 1 7 1 10 . 14 Indirectly . | . . . . . . . . . . . . . . . . . . . Trap Hack Attempts . | . . . . . . . . . . . . . . . . . . . Triggered . | . . . . . . . . . . . . . . . . . . . Disarmed . | . . . . . . . . . . . . . . . . . . . Reprogrammed . | . . . . . . . . . . . . . . . . . . . Reused 1 | . . . . . . . . 1 . . . . . . . . . . Traps Extracted . | . . . . . . . . . . . . . . . . . . . Installed 1 | . . . . . . . . 1 . . . . . . . . . . Triggered 1 | . . . . . . . . 1 . . . . . . . . . . Most Traps Carried 1 | . . . . . . . . 1 . . . . . . . . . . Machines | -11 -10 -10 -10 -9 -8 -8 -8 -8 -7 -7 -6 -6 -6 -6 -5 -5 -5 -5 ---------- Run | Yrd Mat Min Exi Min Mat Gar Mat Gar Fac Gar Fac Gar Fac Gar Fac Gar Fac Gar Machines Disabled 50 | . . . . . 3 8 2 5 2 10 . 3 3 4 3 4 1 2 Max in Single Turn 2 | . . . . . 2 2 1 1 1 1 . 1 1 1 . 1 1 1 Garrison Relay 19 | . . . . . . 3 . 2 . 4 . 3 . 3 . 3 . 1 Phase Generator 1 | . . . . . . 1 . . . . . . . . . . . . Machines Repaired . | . . . . . . . . . . . . . . . . . . . Machines Dismantled . | . . . . . . . . . . . . . . . . . . . Machines Sabotaged . | . . . . . . . . . . . . . . . . . . . Overloaded Fab Kills . | . . . . . . . . . . . . . . . . . . . Hacking | -11 -10 -10 -10 -9 -8 -8 -8 -8 -7 -7 -6 -6 -6 -6 -5 -5 -5 -5 --------- Run | Yrd Mat Min Exi Min Mat Gar Mat Gar Fac Gar Fac Gar Fac Gar Fac Gar Fac Gar Machines Accessed 52 | . 6 1 2 . 7 2 7 1 4 3 2 1 3 2 5 2 1 3 Terminals 37 | . 6 . . . 4 2 5 1 2 3 . 1 2 2 4 2 . 3 Fabricators 1 | . . . . . . . . . . . 1 . . . . . . . Repair Stations . | . . . . . . . . . . . . . . . . . . . Recycling Units 4 | . . . . . 2 . 1 . 1 . . . . . . . . . Scanalyzers . | . . . . . . . . . . . . . . . . . . . Garrison Access 7 | . . . . . 1 . 1 . 1 . 1 . 1 . 1 . 1 . Total Hacks 137 | . 17 1 24 . 17 4 15 4 10 4 5 1 6 3 15 4 1 6 Successful 78 | . 7 1 24 . 7 1 9 . 4 2 1 1 4 2 10 2 1 2 Failed 58 | . 9 . . . 10 3 6 4 6 2 4 . 2 1 5 2 . 4 Catastrophic 7 | . 1 . . . . 1 . . . 1 . . 1 . 2 1 . . Database Lockouts 1 | . 1 . . . . . . . . . . . . . . . . . Manual 41 | . 10 . 1 . 9 . 9 . 3 . . . 3 . 6 . . . Terminals 88 | . 17 . . . 11 4 11 4 4 4 . 1 5 3 14 4 . 6 Fabricators 4 | . . . . . . . . . . . 4 . . . . . . . Repair Stations . | . . . . . . . . . . . . . . . . . . . Recycling Units 13 | . . . . . 5 . 3 . 5 . . . . . . . . . Scanalyzers . | . . . . . . . . . . . . . . . . . . . Garrison Access 7 | . . . . . 1 . 1 . 1 . 1 . 1 . 1 . 1 . Terminal Hacks 47 | . 4 1 24 . 1 1 1 . . 2 . 1 1 2 5 2 . 2 Record 23 | . . . 23 . . . . . . . . . . . . . . . Prototype ID Bank 2 | . 2 . . . . . . . . . . . . . . . . . Open Door 4 | . . 1 . . . 1 . . . 1 . . . 1 . . . . Branch Access Points 1 | . . . . . . . . . . . . . . . 1 . . . Emergency Access Points 5 | . . . . . . . . . . 1 . 1 . 1 . 1 . 1 Garrison Index 1 | . . . . . . . . . . . . . 1 . . . . . Unreport Threat 4 | . . . . . 1 . 1 . . . . . . . 2 . . . Locate Traps 2 | . 2 . . . . . . . . . . . . . . . . . Zone Layout 2 | . . . . . . . . . . . . . . . 2 . . . Patrol Navigation 2 | . . . . . . . . . . . . . . . . 1 . 1 Derelict Proto ID Bank 1 | . . . 1 . . . . . . . . . . . . . . . Fabricator Hacks . | . . . . . . . . . . . . . . . . . . . Repair Station Hacks . | . . . . . . . . . . . . . . . . . . . Recycling Unit Hacks 5 | . . . . . 1 . 2 . 2 . . . . . . . . . Retrieve Matter 2 | . . . . . . . 1 . 1 . . . . . . . . . Retrieve Components 3 | . . . . . 1 . 1 . 1 . . . . . . . . . Scanalyzer . | . . . . . . . . . . . . . . . . . . . Garrison Access Hacks 7 | . . . . . 1 . 1 . 1 . 1 . 1 . 1 . 1 . Unlock Access 7 | . . . . . 1 . 1 . 1 . 1 . 1 . 1 . 1 . Unauthorized Hacks 19 | . 3 . . . 4 . 5 . 1 . . . 2 . 4 . . . Terminals 19 | . 3 . . . 4 . 5 . 1 . . . 2 . 4 . . . Track 1 | . 1 . . . . . . . . . . . . . . . . . Assimilate 2 | . . . . . . . 2 . . . . . . . . . . . Botnet 16 | . 2 . . . 4 . 3 . 1 . . . 2 . 4 . . . Fabricators . | . . . . . . . . . . . . . . . . . . . Repair Stations . | . . . . . . . . . . . . . . . . . . . Recycling Units . | . . . . . . . . . . . . . . . . . . . Scanalyzers . | . . . . . . . . . . . . . . . . . . . Garrison Access . | . . . . . . . . . . . . . . . . . . . Data Cores Recovered . | . . . . . . . . . . . . . . . . . . . Used . | . . . . . . . . . . . . . . . . . . . Hacking Detections 36 | . 4 . . . 5 1 6 1 4 1 2 1 2 . 5 2 . 2 Full Trace Events 6 | . . . . . . 1 . 1 1 1 . . . . . 1 . 1 Feedback Events . | . . . . . . . . . . . . . . . . . . . Feedback Blocked . | . . . . . . . . . . . . . . . . . . . Robot Schematics Acquired . | . . . . . . . . . . . . . . . . . . . Robots Built . | . . . . . . . . . . . . . . . . . . . Authchips . | . . . . . . . . . . . . . . . . . . . Time . | . . . . . . . . . . . . . . . . . . . Total Robot Build Rating . | . . . . . . . . . . . . . . . . . . . Part Schematics Acquired . | . . . . . . . . . . . . . . . . . . . Parts Built . | . . . . . . . . . . . . . . . . . . . Authchips . | . . . . . . . . . . . . . . . . . . . Time . | . . . . . . . . . . . . . . . . . . . Total Part Build Rating . | . . . . . . . . . . . . . . . . . . . Parts Repaired . | . . . . . . . . . . . . . . . . . . . Time . | . . . . . . . . . . . . . . . . . . . Parts Recycled . | . . . . . . . . . . . . . . . . . . . Recycled Matter . | . . . . . . . . . . . . . . . . . . . Retrieved Matter . | . . . . . . . . . . . . . . . . . . . Retrieved Components 2 | . . . . . 1 . . . 1 . . . . . . . . . Parts Scanalyzed . | . . . . . . . . . . . . . . . . . . . Part Schematics Acquired . | . . . . . . . . . . . . . . . . . . . Parts Damaged . | . . . . . . . . . . . . . . . . . . . Bothacking | -11 -10 -10 -10 -9 -8 -8 -8 -8 -7 -7 -6 -6 -6 -6 -5 -5 -5 -5 ------------ Run | Yrd Mat Min Exi Min Mat Gar Mat Gar Fac Gar Fac Gar Fac Gar Fac Gar Fac Gar Used RIF Installer 8 | . . . . . . 1 . 2 . 1 . 1 . 1 . 1 . 1 Hotswap 1 | . . . . . . . . 1 . . . . . . . . . . Code Merge 1 | . . . . . . . . . . . . . . . . 1 . . Zone Cloak 1 | . . . . . . . . . . . . . . 1 . . . . Robot Detection 1 | . . . . . . . . . . . . . . . . . . 1 Structural Interface 1 | . . . . . . . . 1 . . . . . . . . . . Autoassimilate 2 | . . . . . . . . . . 1 . 1 . . . . . . Robots Hacked 53 | . . . . . . . 3 . 7 5 1 10 5 7 3 5 . 7 Non-combat 2 | . . . . . . . . . 1 . . . 1 . . . . . Combat 51 | . . . . . . . 3 . 6 5 1 10 4 7 3 5 . 7 Autoassimilated 12 | . . . . . . . . . . . . 5 2 1 1 1 . 2 Robot Hacks Applied 44 | . . . . . . . 4 . 7 5 1 6 4 6 2 4 . 5 purge_threat 2 | . . . . . . . . . . . . . 2 . . . . . find_garrison 1 | . . . . . . . 1 . . . . . . . . . . . scatter_targeting 2 | . . . . . . . . . . 1 . 1 . . . . . . amplify_resonance 4 | . . . . . . . . . . . . 1 . 1 . 1 . 1 disable_weapons 1 | . . . . . . . 1 . . . . . . . . . . . overwrite_iff 7 | . . . . . . . . . 1 1 . 1 1 1 . 1 . 1 formatsys_high 27 | . . . . . . . 2 . 6 3 1 3 1 4 2 2 . 3 Relay Couplers Released 84 | . . . . . . 13 . 7 . 16 . 17 4 13 . 10 . 4 Machine Destruction 77 | . . . . . . 13 . 7 . 16 . 14 . 13 . 10 . 4 Programmers 7 | . . . . . . . . . . . . 3 4 . . . . . Attached 23 | . . . . . . . 2 . 2 1 1 3 2 2 1 3 . 6 Merged Code Value 14 | . . . . . . . . . . . . . . . . 8 . 6 Fabnet Peak Effective % . | . . . . . . . . . . . . . . . . . . . Robots Rewired 15 | . . . . . . 5 . . . 2 . . . 1 . . . 7 Allies Hacked 1 | . . . . . . . . . . . . 1 . . . . . . Hacks Repelled . | . . . . . . . . . . . . . . . . . . . Allies | -11 -10 -10 -10 -9 -8 -8 -8 -8 -7 -7 -6 -6 -6 -6 -5 -5 -5 -5 -------- Run | Yrd Mat Min Exi Min Mat Gar Mat Gar Fac Gar Fac Gar Fac Gar Fac Gar Fac Gar Total Allies 72 | . . 2 . 3 . 5 2 . 7 8 1 9 4 9 3 6 . 13 Largest Group 11 | . . 2 2 3 3 3 2 . 4 5 5 6 2 3 2 3 3 11 Highest-Rated Group 358 | . . 46 46 40 40 59 45 . 80 260 260 239 64 116 178 209 209 358 Highest-Rated Ally 137 | . . 31 31 16 16 39 29 . 32 95 95 95 41 85 137 80 80 85 Total Orders 2 | . . . . . . . . . 2 . . . . . . . . . STAY 1 | . . . . . . . . . 1 . . . . . . . . . FOLLOW 1 | . . . . . . . . . 1 . . . . . . . . . Ally Attacks 408 | . . 8 . . 25 25 14 . 28 58 5 46 25 34 18 17 11 94 Total Damage 10436 | . . 84 . . 281 470 209 . 519 1368 68 1308 751 879 1012 463 159 2865 Kills 89 | . . 2 . . 5 7 1 . 4 14 1 9 5 10 8 1 3 19 Allies Corrupted 2 | . . . . . . . . . . . . 1 . . . . . 1 Allies Melted 1 | . . . . . . 1 . . . . . . . . . . . . Intel | -11 -10 -10 -10 -9 -8 -8 -8 -8 -7 -7 -6 -6 -6 -6 -5 -5 -5 -5 ------- Run | Yrd Mat Min Exi Min Mat Gar Mat Gar Fac Gar Fac Gar Fac Gar Fac Gar Fac Gar Robot Analysis Total . | . . . . . . . . . . . . . . . . . . . Derelict Logs Recovered 1 | . . 1 . . . . . . . . . . . . . . . . Drone Launches . | . . . . . . . . . . . . . . . . . . . Drone Recoveries . | . . . . . . . . . . . . . . . . . . . Exploration | -11 -10 -10 -10 -9 -8 -8 -8 -8 -7 -7 -6 -6 -6 -6 -5 -5 -5 -5 ------------- Run | Yrd Mat Min Exi Min Mat Gar Mat Gar Fac Gar Fac Gar Fac Gar Fac Gar Fac Gar Turns Passed 22425 | 122 1309 1119 928 47 1922 1855 981 1072 817 1793 187 1516 1648 1769 1189 1332 127 2692 Spaces Moved 9497 | 65 710 614 393 20 778 939 459 524 397 793 58 578 517 545 478 462 57 1110 Core 27 | 4 . . . . . . . . . . . . . 16 . . . 7 Treads 6893 | 61 710 614 393 20 643 939 459 524 397 793 58 578 472 113 . . . 119 Legs 2442 | . . . . . . . . . . . . . 45 416 478 462 57 984 Wheels 135 | . . . . . 135 . . . . . . . . . . . . . Hover . | . . . . . . . . . . . . . . . . . . . Flight . | . . . . . . . . . . . . . . . . . . . Fastest Speed 50 | 50 160 160 160 240 160 160 160 160 160 160 240 160 190 190 190 190 190 110 Average Speed 190 | 153 160 160 235 240 162 160 160 168 160 195 240 234 240 281 190 190 190 196 Slowest Speed 1950 | 160 160 160 240 240 240 160 160 240 240 240 240 320 560 1950 260 190 190 1600 Overloaded Moves . | . . . . . . . . . . . . . . . . . . . Propulsion Burnouts . | . . . . . . . . . . . . . . . . . . . Robots Hopped . | . . . . . . . . . . . . . . . . . . . Cave-ins Triggered . | . . . . . . . . . . . . . . . . . . . Exploration Rate (%) 50 | 6 94 96 90 5 53 69 41 62 10 93 2 80 11 71 13 78 3 74 Regions Visited 18 Branch Regions 3 Pre-discovered Areas 2 | . . 1 1 . . . . . . . . . . . . . . . Known Exits Taken 7 | . . . . . 1 . 1 . 1 . 1 . 1 . 1 . 1 . Unknown Exits Taken 5 | 1 1 1 1 1 . . . . . . . . . . . . . . Scrap Searched 1 | . . 1 . . . . . . . . . . . . . . . . Spaces Dug 47 | . 6 . . . 9 4 8 1 2 . . 3 3 2 8 . 1 . Terrain Destroyed 603 | . 6 . . 10 60 122 79 16 5 15 2 22 30 55 14 81 6 80 Melee 4 | . . . . . . 4 . . . . . . . . . . . . Projectile 189 | . 6 . . 10 10 6 41 15 5 8 2 17 22 4 14 15 . 14 AOE 409 | . . . . . 50 112 38 . . 7 . 5 8 51 . 66 6 66 Terrain Rammed . | . . . . . . . . . . . . . . . . . . . Walls Destroyed . | . . . . . . . . . . . . . . . . . . . Machines Disabled . | . . . . . . . . . . . . . . . . . . . Actions | -11 -10 -10 -10 -9 -8 -8 -8 -8 -7 -7 -6 -6 -6 -6 -5 -5 -5 -5 --------- Run | Yrd Mat Min Exi Min Mat Gar Mat Gar Fac Gar Fac Gar Fac Gar Fac Gar Fac Gar Total 12609 | 81 797 735 397 20 1332 1166 593 626 551 949 99 669 829 733 709 782 69 1472 Wait 1464 | . 12 90 . . 423 76 37 17 98 33 20 16 207 77 141 167 5 45 Move 9484 | 64 709 613 392 19 778 938 458 523 397 792 58 577 516 544 478 461 57 1110 Hop . | . . . . . . . . . . . . . . . . . . . Pick Up 208 | 7 12 9 2 . 20 20 8 13 8 18 2 9 9 12 12 9 1 37 Fast Attach 89 | 7 . . . . 7 1 1 . 4 7 1 4 11 7 8 5 . 26 Attach 85 | . . 1 . 1 6 8 5 4 3 3 2 4 2 7 5 4 . 30 Detach 12 | . . . 2 . 1 1 . . . . 1 . . 1 . . . 6 Swap 193 | . 10 4 1 . 23 22 12 7 7 18 8 9 10 10 16 14 3 19 Drop 180 | 1 7 6 . . 22 18 7 11 9 20 3 3 14 8 17 9 . 25 Fire 700 | 2 46 11 . . 52 68 56 47 24 53 4 43 51 36 32 78 3 94 Melee 25 | . . . . . . 13 7 . . . . . . . . . . 5 Ram 1 | . . . . . . . . . . . . . . . . . . 1 Kick . | . . . . . . . . . . . . . . . . . . . Crush 16 | . 1 1 . . . . . 1 . . . . 8 . . . . 5 Escape Stasis 122 | . . . . . . . . . . 4 . 4 . 30 . 35 . 49 Rewire 29 | . . . . . . 1 2 2 1 1 . . 1 1 . . . 20 Trap 1 | . . . . . . . . 1 . . . . . . . . . . Miscellaneous . | . . . . . . . . . . . . . . . . . . . Route ------- -11/Scrapyard -10/Materials (discovered 4 exits: [*Mat x3] / *Min) -10/Mines (discovered 3 exits: [*Mat x2] / *Exi) -10/Exiles -9/Mines -8/Materials (discovered 3 exits: *Fac x2 / Gar) -8/Garrison (discovered 2 exits: *Mat x2) -8/Materials (discovered 3 exits: *Fac x2 / Gar) -8/Garrison -7/Factory -7/Garrison (discovered 2 exits: *Fac x2) -6/Factory -6/Garrison (discovered 3 exits: *Fac x3) -6/Factory -6/Garrison (discovered 2 exits: *Fac x2) -5/Factory (discovered 4 exits: [*Fac] / Upp x2 / Gar) -5/Garrison (discovered 2 exits: *Fac x2) -5/Factory -5/Garrison (discovered 3 exits: [*Fac x3]) History --------- Turn | Location | Event 10 | -11/Scrapyard | Discovered new exit (range 14) 123 | -11/Scrapyard | Entered Materials 307 | -10/Materials | Build established: Mutant 433 | -10/Materials | Discovered new exit (range 11) 566 | -10/Materials | Central database locked down 740 | -10/Materials | Discovered new exit (range 7) 886 | -10/Materials | Discovered new exit (range 10) 1086 | -10/Materials | Discovered new exit (range 11) 1432 | -10/Materials | Entered Mines 1654 | -10/Mines | Found a damaged Exp. Sensor Array with a note attached 1657 | -10/Mines | Found Prototype Device 2180 | -10/Mines | Discovered new exit (range 9) 2241 | -10/Mines | Discovered new exit (range 15) 2389 | -10/Mines | Met a Derelict shopkeep closing up shop 2467 | -10/Mines | Learned location of Storage (-9) 2543 | -10/Mines | Deemed a non-threat by the Exiles lab entrance 2543 | -10/Mines | Discovered new exit (range 5) 2551 | -10/Mines | Entered Exiles 2551 | -10/Exiles | Accompanied by 2 allies 2581 | -10/Exiles | Led the pair of lost Derelicts to a safe place 2617 | -10/Exiles | Met 8R-AWN 2653 | -10/Exiles | Met EX-HEX 2725 | -10/Exiles | Met EX-BIN 2753 | -10/Exiles | Aligned with FarCom system 2756 | -10/Exiles | Given EX-Vault access code 2811 | -10/Exiles | Opened EX-Vault 2823 | -10/Exiles | Found AWS/Gauss 2872 | -10/Exiles | Warned to stay clear of 0b10 Research branches 2954 | -10/Exiles | Met EX-DEC 2956 | -10/Exiles | Learned location of Zion (-6) 3051 | -10/Exiles | Visited The Gauntlet 3450 | -10/Exiles | Discovered new exit (range 14) 3479 | -10/Exiles | Left Exiles lab with AWS/Gauss 3479 | -10/Exiles | Entered Mines 3480 | -9/Mines | Assembled infested the area 3485 | -9/Mines | Assisted by a Guerilla fighting off Assembled 3499 | -9/Mines | Met a Derelict bent on vengeance 3509 | -9/Mines | Assisted by bots powering up and referring to "LRC-V3" 3512 | -9/Mines | Discovered new exit (range 5) 3526 | -9/Mines | Entered Materials 3526 | -8/Materials | Accompanied by 3 allies 3526 | -8/Materials | Evolved 4 slots: Propulsion x2, Utility x1, Weapon x1 3917 | -8/Materials | Build established: Tank 4168 | -8/Materials | Discovered new exit (range 10) 4421 | -8/Materials | Identified Exp. Sensor Array 4829 | -8/Materials | Build established: Skirmisher 5302 | -8/Materials | Discovered new exit (range 13) 5448 | -8/Materials | Identified exit to Garrison 5448 | -8/Materials | Entered Garrison 5470 | -8/Garrison | Triggered checkpoint 5586 | -8/Garrison | Garrison Relay disabled 5762 | -8/Garrison | Triggered checkpoint 5965 | -8/Garrison | Phase Generator disabled 6206 | -8/Garrison | Build established: Mutant 6272 | -8/Garrison | Triggered checkpoint 6298 | -8/Garrison | Discovered new exit (range 11) 6299 | -8/Garrison | Destroyed 8 combat bots 6450 | -8/Garrison | Lost 4 parts (1p1n2w) 6606 | -8/Garrison | Triggered checkpoint 6630 | -8/Garrison | Garrison Relay disabled 6675 | -8/Garrison | Build established: Scavenger-Skirmisher 6963 | -8/Garrison | Installed Relay Interface Framework 6976 | -8/Garrison | Garrison Relay disabled 7050 | -8/Garrison | Discovered new exit (range 9) 7098 | -8/Garrison | Triggered checkpoint 7266 | -8/Garrison | Build established: Bothacker-Skirmisher 7303 | -8/Garrison | Entered Materials 7303 | -8/Materials | Accompanied by 1 ally 7718 | -8/Materials | Discovered new exit (range 5) 7779 | -8/Materials | Build established: Bothacker-Mutant 8103 | -8/Materials | First assault squad dispatched 8154 | -8/Materials | Destroyed 7 combat bots 8185 | -8/Materials | Lost 3 parts (1n1u1w) 8254 | -8/Materials | Discovered new exit (range 9) 8279 | -8/Materials | Identified exit to Garrison 8284 | -8/Materials | Entered Garrison 8440 | -8/Garrison | Build established: Scavenger-Skirmisher 8510 | -8/Garrison | Triggered checkpoint 8562 | -8/Garrison | Garrison Relay disabled 8657 | -8/Garrison | Expanded RIF knowledge: Structural Interface 8722 | -8/Garrison | Triggered checkpoint 8865 | -8/Garrison | Discovered new exit (range 12) 8997 | -8/Garrison | Expanded RIF knowledge: Hotswap 9190 | -8/Garrison | Garrison Relay disabled 9229 | -8/Garrison | System corruption reached 10% 9356 | -8/Garrison | Entered Factory 9356 | -7/Factory | Evolved 2 slots: Utility x2 9770 | -7/Factory | Build established: Bothacker-Skirmisher 9990 | -7/Factory | Lost 3 allies 10173 | -7/Factory | Identified exit to Garrison 10173 | -7/Factory | Entered Garrison 10173 | -7/Garrison | Accompanied by 2 allies 10231 | -7/Garrison | Triggered checkpoint 10305 | -7/Garrison | Garrison Relay disabled 10383 | -7/Garrison | Triggered checkpoint 10396 | -7/Garrison | Triggered checkpoint 10523 | -7/Garrison | Lost 3 allies 10626 | -7/Garrison | Spotted B-75 Beast 10647 | -7/Garrison | Destroyed B-75 Beast 10797 | -7/Garrison | Triggered checkpoint 10910 | -7/Garrison | Garrison Relay disabled 11063 | -7/Garrison | Triggered checkpoint 11137 | -7/Garrison | Triggered checkpoint 11154 | -7/Garrison | Found embedded Infiltrators 11174 | -7/Garrison | Garrison Relay disabled 11393 | -7/Garrison | Discovered new exit (range 15) 11661 | -7/Garrison | Triggered checkpoint 11806 | -7/Garrison | Garrison Relay disabled 11833 | -7/Garrison | Triggered checkpoint 11877 | -7/Garrison | Discovered new exit (range 2) 11920 | -7/Garrison | Expanded RIF knowledge: Autoassimilate 11966 | -7/Garrison | Entered Factory 11966 | -6/Factory | Accompanied by 5 allies 11966 | -6/Factory | Evolved 2 slots: Propulsion x2 12153 | -6/Factory | Identified exit to Garrison 12153 | -6/Factory | Entered Garrison 12153 | -6/Garrison | Accompanied by 4 allies 12199 | -6/Garrison | Expanded RIF knowledge: Autoassimilate 12225 | -6/Garrison | Triggered checkpoint 12271 | -6/Garrison | Garrison Relay disabled 12452 | -6/Garrison | Spotted B-75 Beast 12457 | -6/Garrison | Triggered checkpoint 12467 | -6/Garrison | Triggered checkpoint 12484 | -6/Garrison | Allies destroyed B-75 Beast 12511 | -6/Garrison | Lost 3 allies 12517 | -6/Garrison | Triggered checkpoint 12649 | -6/Garrison | Triggered checkpoint 12677 | -6/Garrison | Garrison Relay disabled 12712 | -6/Garrison | Discovered new exit (range 15) 12777 | -6/Garrison | Lost 3 parts (2n1w) 12791 | -6/Garrison | Found Relay Coupler [Proto] 12986 | -6/Garrison | Build established: Botlord-Skirmisher 13209 | -6/Garrison | Discovered new exit (range 10) 13315 | -6/Garrison | Triggered checkpoint 13511 | -6/Garrison | Garrison Relay disabled 13523 | -6/Garrison | Triggered checkpoint 13647 | -6/Garrison | Discovered new exit (range 10) 13669 | -6/Garrison | Entered Factory 13669 | -6/Factory | Accompanied by 1 ally 15266 | -6/Factory | Identified exit to Garrison 15317 | -6/Factory | Entered Garrison 15379 | -6/Garrison | Expanded RIF knowledge: Zone Cloak 15585 | -6/Garrison | Triggered checkpoint 15663 | -6/Garrison | Rescued a captive Derelict 15666 | -6/Garrison | Rescued a captive Derelict 15713 | -6/Garrison | Lost 3 parts (3n) 16023 | -6/Garrison | Garrison Relay disabled 16325 | -6/Garrison | Triggered checkpoint 16373 | -6/Garrison | Triggered checkpoint 16414 | -6/Garrison | Lost 3 parts (1n1u1w) 16483 | -6/Garrison | Triggered checkpoint 16548 | -6/Garrison | Garrison Relay disabled 16620 | -6/Garrison | Discovered new exit (range 14) 16649 | -6/Garrison | Garrison Relay disabled 16744 | -6/Garrison | Triggered checkpoint 16909 | -6/Garrison | Triggered checkpoint 17011 | -6/Garrison | Discovered new exit (range 10) 17062 | -6/Garrison | Spotted B-90 Cyclops 17066 | -6/Garrison | Rewired B-75 Beast 17086 | -6/Garrison | Entered Factory 17086 | -5/Factory | Evolved 2 slots: Power x1, Utility x1 17401 | -5/Factory | Build established: Botlord-Tank 17684 | -5/Factory | Discovered new exit (range 9) 17829 | -5/Factory | Build established: Botlord-Skirmisher 18100 | -5/Factory | Cargo convoy interrupted 18115 | -5/Factory | Identified exit to Upper Caves 18212 | -5/Factory | Garrison activated, responded to threat 18275 | -5/Factory | Identified exit to Garrison 18275 | -5/Factory | Entered Garrison 18275 | -5/Garrison | Accompanied by 1 ally 18367 | -5/Garrison | Triggered checkpoint 18426 | -5/Garrison | Garrison Relay disabled 18500 | -5/Garrison | Triggered checkpoint 18693 | -5/Garrison | Lost 3 parts (1p1n1u) 18740 | -5/Garrison | Destroyed 7 combat bots 18832 | -5/Garrison | Triggered checkpoint 18961 | -5/Garrison | Build established: Botlord-Tank 19080 | -5/Garrison | Expanded RIF knowledge: Code Merge 19099 | -5/Garrison | Discovered new exit (range 2) 19145 | -5/Garrison | Triggered checkpoint 19150 | -5/Garrison | Garrison Relay disabled 19446 | -5/Garrison | Garrison Relay disabled 19470 | -5/Garrison | Triggered checkpoint 19558 | -5/Garrison | Discovered new exit (range 2) 19582 | -5/Garrison | Found embedded Infiltrators 19607 | -5/Garrison | Entered Factory 19607 | -5/Factory | Accompanied by 3 allies 19734 | -5/Factory | Identified exit to Garrison 19734 | -5/Factory | Entered Garrison 19734 | -5/Garrison | Accompanied by 3 allies 19852 | -5/Garrison | Build established: Botlord-Skirmisher 20002 | -5/Garrison | Triggered checkpoint 20116 | -5/Garrison | Spotted B-75 Beast 20136 | -5/Garrison | Destroyed B-75 Beast 20172 | -5/Garrison | Lost 11 allies 20225 | -5/Garrison | Lost 10 parts (2p5n3w) 20334 | -5/Garrison | Triggered checkpoint 20500 | -5/Garrison | Garrison Relay disabled 20660 | -5/Garrison | Triggered checkpoint 20670 | -5/Garrison | Triggered checkpoint 20845 | -5/Garrison | Discovered new exit (range 11) 20983 | -5/Garrison | Lost 3 parts (1p2n) 21113 | -5/Garrison | Heavy support dispatched to Factory 21129 | -5/Garrison | Discovered new exit (range 13) 21154 | -5/Garrison | Spotted B-75 Beast 21167 | -5/Garrison | Assimilated Beast 6a with formatsys_high 21180 | -5/Garrison | Core integrity fell below 50% 21199 | -5/Garrison | Heavy support dispatched to Factory 21203 | -5/Garrison | Lost 7 parts (1p3u3w) 21406 | -5/Garrison | Found Relay Coupler [Proto] 21424 | -5/Garrison | Heavy support dispatched to Factory 21588 | -5/Garrison | Expanded RIF knowledge: Robot Detection 21617 | -5/Garrison | Build established: Scavenger-Mutant 21654 | -5/Garrison | Triggered checkpoint 21744 | -5/Garrison | Triggered checkpoint 21816 | -5/Garrison | Discovered new exit (range 11) 22355 | -5/Garrison | Spotted Striker 22355 | -5/Garrison | Spotted Striker 22409 | -5/Garrison | Core integrity fell below 20% 22426 | -5/Garrison | Destroyed by Striker with Plasma Lance Last Messages --------------- Wave Gun. 22380_ System corrupted: Wave Gun misfires. 22389_ Slug penetrates Wall. 22401_ System corrupted: Heat flow error (+149). 22407_ Beast 6a destroyed. 22409_ Penetrated by Slug. 22416_ Hrd. Heavy Armor Plating destroyed. 22417_ Slammed into Striker. 22417_ Penetrated by Slug. 22418_ Slammed into H-66 Slayer. 22420_ Penetrated by Slug. 22423_ Slammed into Striker. 22424_ Penetrated by Slug. 22424_ Critical hit (Destroy). 22424_ Imp. Treads destroyed. 22424_ Penetrated by Slug. 22424_ Imp. Treads destroyed. 22425_ Slammed into Striker. 22425_ Wave Gun destroyed. 22425_ Neutrino Core destroyed. Map ----- +----------------------------------------------------+ | ????????????????????????????###########"## | | ????????????????????????????# %% !!%* | | ????????????????????????????# ! !!![ | | ??????########???????????##?# ]** [%! | | ??????# "" ""#?####??????# ## #### [=*%= | | ??????#" ! "#?#""#???????# # #??# # ### | | ??????# = = #?#T #????????#"! #??# ###?? | | ??????####=###?#" #???????##" ^^#??# #???? | | ?????????#=#???## #???????# " ^#??#[#???? | | ?????????#=###### ########### #### ##### | | ?????????# =[ = * + % | | ?????????#+###### "########## #########[ | | ?????????# #????# "?????????# [ #???????## | | ?????????# #????# "?????????#= #???????# | | ?????????# #????# "?????????# #?????### | | ?????##### #??### "?????????# ###???# | | ?????#!!!# #### "?????????# * ##### | | ?????# + ##????????# * !+ | | ?????#!!!###### ;#????????# %= ## ##### | | ?????#####????### ;#????????# *####?????# | | ????????????????# ;#????????# "#???????# | | ????????????????#*]#????????# ##???????# | | ????????????????#=!#????????# #??#?##### | | ?????#####????###%!##??????## ####+#!! ! | | ?????#!!!######]h=K #??????# % + ! | | ?????# = + !@###??????# + | | ?????#] =###### %K#????????## ! ######!!!! | | ?????## ##????### #?????????# %=#????##### | | ??????# #???????# #?????????# #????????? | | ??????# #???????# #?????????# % #????????? | | ??????# #???????# #???????### #????????? | | ?????##%##??????# #???????# + %+????????? | | ?????# "%######?" #???????### !!###???#### | | ?????#* " +?" #???????# +%=%+ #???# | | ?????#%% ######?" #???????###% !###???# | | ?????#*+##??????# #????????#" ##### | | ?????## #????????+?????????## + " | | ??????" "???????????????????# ##### | | ?????? ^ ???????????????????#######???# | | ??????" ""????????????????????????????# | | ??????" ""????????????????????????????#### | | ?????? ??????????????????????????????# | | ??????" ""???????????????????????????????? | | ???????##????????????????????????????????? | | ?????????????????????????????????????????? | | ?????????????????????????????????????????? | | ?????????????????????????????????????????? | | | | | | | +----------------------------------------------------+ Best States ------------- Heat Dissipation 71 Energy Generation 35 Energy Capacity 1115 Matter Stores 300 Matter Capacity 300 Sight Range 16 Terrain Scan Range 20 Terrain Scan Density 10 Armor Coverage 600 Resistance: KI 20 Phase Shifting 10 Evasion (%) 55 Recoil Reduction 6 Kinecelleration 40 Offensive Hacking 14 Defensive Hacking 10 Relay Coupler Types 4 Relay Coupler Value 87 Item Schematics ----------------- None Robot Schematics ------------------ None Fabricated ------------ Nothing Alien Tech Used ----------------- None Achievements -------------- Collateral Damage Generalissimo Challenges ------------ None Game ------ Seed QuantumShieldInterrupter Manual? 0 Play Time 05:28:18 Cumulative 74.9 hours Start 2025.01.08 @ 19:23:17 End 2025.01.18 @ 21:02:41 Sessions 9 Manual Loads 0 Difficulty Rogue Special Mode None Game No. 35 Rogue 35 Adventurer 0 Explorer 0 Win Type - Total 0 Types 0/0/0/0/0/0/0/0/0 Lore% 38 Gallery% 41 Achievement% 37 Wizard Run 0 Options --------- Layout 1 ASCII 0 Keyboard 0 Movement Mouse Keybinds 0 Fullscreen 1 Font 32/Smallcaps Map View 50x35 Zoom Use 0% Tactical HUD 1 Map Filters NONE Filters NONE Steam 1 RUN: ac97b563-ddbb-4596-b6fc-8f5ba5f86d7c